Cogmind - Beta 17 @@@ ROGUE MODE // 2026.07.23 @ 22:03:43 Player: Akl Result: Destroyed by H-55 Commando with Gauss Rifle Performance ------------- Evolutions (3) 1500 Regions Visited (7) 1400 Robots Destroyed (33) 165 Value Destroyed (1102) 1102 Prototype IDs (0) 0 Alien Tech Used (0) 0 Bonus (0) 0 TOTAL SCORE: 4167 Bonus ------- None Cogmind --------- Core Integrity 0/700 Matter 290/300 Energy 98/100 System Corruption 0% Temperature Cool (0) Movement Core (50) Location -7/Lower Caves Parts ------- > --- POWER (1) -------- (None) > --- PROPULSION (4) --- (None) > --- UTILITY (5) ------ Advanced Visual Processing Unit Improved Terrain Scan Processor > --- WEAPON (3) ------- (None) > --- INVENTORY (5) ---- Ion Engine Targeting Computer Core Analyzer Makeshift Light Armor Plating Mining Laser Peak State ------------ > --- POWER ------------ Reinforced Ion Engine > --- PROPULSION ------- Medium Treads Aluminum Leg Aluminum Leg Carbon-fiber Leg > --- UTILITY ---------- Trap Scanner Advanced Visual Processing Unit Improved Terrain Scan Processor Seismic Detector Advanced Targeting Computer > --- WEAPON ----------- Gauss Rifle Gauss Rifle Flak Gun > --- INVENTORY -------- Ion Engine Cesium-ion Thruster Targeting Computer Core Analyzer Mining Laser [Rating: 37] Favorites ----------- Power Reinforced Ion Engine Engine Reinforced Ion Engine Propulsion Aluminum Leg Treads Medium Treads Leg Aluminum Leg Wheel Wheel Hover Unit Hover Unit Flight Unit Cesium-ion Thruster Utility Improved Terrain Scan Processor Device Trap Scanner Processor Improved Terrain Scan Processor Protection Improved Weapon Shielding Weapon Gauss Rifle Energy Gun Medium Laser Ballistic Gun Gauss Rifle Launcher Proton Missile Launcher Slashing Weapon Makeshift Axe Build | -11 -10 -9 -9 -8 -8 -7 -7 ------- Run | Yrd Mat Mat Min Mat Sto Fac Low Slots Evolved 6 | . . 2 . 2 . 2 . Power . | . . . . . . . . Propulsion 2 | . . 1 . 1 . . . Utility 3 | . . . . 1 . 2 . Weapon 1 | . . 1 . . . . . Parts Attached 44 | 5 5 2 4 1 14 5 8 Power 4 | 1 1 . 1 . . . 1 Engine 4 | 1 1 . 1 . . . 1 Core . | . . . . . . . . Reactor . | . . . . . . . . Propulsion 20 | 2 2 1 2 . 9 2 2 Treads 1 | . . . . . . 1 . Leg 7 | . . . . . 5 1 1 Wheel 4 | 2 . . 2 . . . . Hover 7 | . 2 1 . . 4 . . Flight 1 | . . . . . . . 1 Utility 9 | . . . 1 1 3 2 2 Device 4 | . . . 1 . 2 1 . Storage . | . . . . . . . . Processor 3 | . . . . 1 1 1 . Hackware . | . . . . . . . . Protection 2 | . . . . . . . 2 Artifact . | . . . . . . . . Weapon 11 | 2 2 1 . . 2 1 3 Energy Gun 1 | 1 . . . . . . . Energy Cannon . | . . . . . . . . Ballistic Gun 7 | 1 2 1 . . 2 1 . Ballistic Cannon . | . . . . . . . . Launcher 1 | . . . . . . . 1 Special Weapon . | . . . . . . . . Impact Weapon . | . . . . . . . . Slashing Weapon 2 | . . . . . . . 2 Piercing Weapon . | . . . . . . . . Special Melee Weapon . | . . . . . . . . Unidentified Prototypes . | . . . . . . . . Parts Lost 23 | . . 1 . . 7 . 15 Power 1 | . . . . . . . 1 Propulsion 10 | . . 1 . . 3 . 6 Utility 4 | . . . . . 1 . 3 Weapon 8 | . . . . . 3 . 5 Highest Loss Streak 8 | . . 1 . . 3 . 8 To Critical Strikes . | . . . . . . . . Average Backups 4 | 1 4 4 4 4 4 3 4 Power 1 | 1 1 1 1 1 1 1 1 Propulsion . | . . . . . . 1 . Utility 1 | . 1 1 1 1 1 . 1 Weapon 1 | . 2 2 2 2 2 1 1 Tool/Special . | . . . . . . . . Unused Backups 5 | . . 1 . . . . 4 Power . | . . . . . . . . Propulsion . | . . . . . . . . Utility 3 | . . . . . . . 3 Weapon 2 | . . 1 . . . . 1 Tool/Special . | . . . . . . . . Average Slot Usage (%) 87 | . 67 65 69 78 88 97 90 Engine 7 | . 12 11 11 9 9 7 5 Treads 3 | . . . . . . 3 5 Leg 16 | . . . . . 12 26 19 Wheel 1 | . 10 . 4 18 2 . . Hover 5 | . 18 26 20 9 14 . . Device 12 | . . . . 9 14 15 13 Processor 16 | . . . . 6 10 21 22 Ballistic Gun 21 | . 24 27 33 27 24 22 19 Peak Build Rating 37 | 5 9 13 15 19 25 36 37 Average Rating 26 | 3 7 11 11 17 21 32 33 On Entrance 14 | . 5 9 11 15 19 23 36 Avg Prop Armor Cover (%) 6 | . 20 . 6 4 4 7 6 Naked Turns . | . . . . . . . . Heaviest Build 25 | 9 11 14 20 20 23 25 25 Greatest Support 40 | 20 20 21 20 20 40 40 35 Greatest Overweight (x) 5 | 1 1 . 1 . 3 . 5 Average Overweight (x) . | . . . . . . . . Largest Inventory Capacity 5 | 5 5 5 5 5 5 5 5 Average Capacity 5 | 5 5 5 5 5 5 5 5 Most Carried 5 | 4 5 5 5 5 5 5 5 Average Carried 4 | 2 4 4 4 4 4 3 4 Final Capacity 5 | 5 5 5 5 5 5 5 5 Final Carried 5 | 3 5 4 4 5 4 3 5 Class Distribution -------------------- 49% | Scavenger-Gunner 21% | Mutant 8% | Scavenger-Skirmisher 7% | Gunner 5% | Skirmisher 4% | Scavenger-Mutant Dominant Class ---------------- Mutant | -10/Materials Gunner | -9/Materials Gunner | -9/Mines Scavenger-Skirmisher | -8/Materials Skirmisher | -8/Storage Scavenger-Gunner | -7/Factory Scavenger-Gunner | -7/Lower Caves Resources | -11 -10 -9 -9 -8 -8 -7 -7 ----------- Run | Yrd Mat Mat Min Mat Sto Fac Low Matter Collected 1311 | 295 131 . 117 . 435 . 333 Remotely . | . . . . . . . . Salvage Created 1509 | 203 144 . 262 . 546 . 354 Parts 74 | 9 6 . 11 . 29 . 19 Haulers Intercepted . | . . . . . . . . Recyclers Shooed . | . . . . . . . . Parts Field Recycled . | . . . . . . . . Retrieved Matter . | . . . . . . . . Parts Self-Destructed 17 | . . . . . . . 17 Prevented 1 | . . . . . . . 1 Parts Restored . | . . . . . . . . Kills | -11 -10 -9 -9 -8 -8 -7 -7 ------- Run | Yrd Mat Mat Min Mat Sto Fac Low Combat Hostiles Destroyed 22 | . 4 . 2 . 10 . 6 Melee 1 | . . . . . . . 1 Guns 21 | . 4 . 2 . 10 . 5 Classes Destroyed 9 | 2 1 . 1 . 3 . 2 Worker 1 | . . . . . 1 . . Tunneler 6 | 5 . . 1 . . . . Recycler 3 | 1 . . 2 . . . . Watcher 1 | . . . . . 1 . . Grunt 13 | . 4 . 1 . 5 . 3 Brawler 2 | . . . 1 . . . 1 Sentry 5 | . . . . . 5 . . Programmer 1 | . . . . . . . 1 Behemoth 1 | . . . . . . . 1 Best Kill Streak 5 | 5 3 . 5 . 2 . 3 Combat Bots Only 3 | . 3 . 2 . 2 . 3 Max Kills in Single Turn 1 | 1 1 . 1 . 1 . 1 Gunslinging . | . . . . . . . . Exploded . | . . . . . . . . Melee 1 | . . . . . . . 1 Uniques/NPCs Destroyed . | . . . . . . . . Combat | -11 -10 -9 -9 -8 -8 -7 -7 -------- Run | Yrd Mat Mat Min Mat Sto Fac Low Hostile Shots Fired 230 | . 15 15 3 4 61 . 132 Missed 67 | . 5 4 1 1 14 . 42 Hits 163 | . 10 11 2 3 47 . 90 Melee 4 | . . . 1 . . . 3 Projectile 159 | . 10 11 1 3 47 . 87 Critical Strikes 12 | . . . . . 7 . 5 Damage Taken 3241 | . 125 146 44 54 732 . 2140 Core 847 | . 33 24 . . 82 . 708 Absorbed by Shields . | . . . . . . . . Redirected to Shielding 118 | . . . . . . . 118 Core Remaining (%) 91 | 100 86 . 94 . 85 . . Volleys Fired 101 | 18 9 . 6 . 37 . 31 Largest 3 | 2 2 . 3 . 3 . 3 Hottest 95 | 70 46 . 69 . 79 . 95 Shots Fired 199 | 36 18 . 18 . 72 . 55 Gun 198 | 36 18 . 18 . 72 . 54 Cannon . | . . . . . . . . Launcher 1 | . . . . . . . 1 Special . | . . . . . . . . Kinetic 180 | 18 18 . 18 . 72 . 54 Thermal 18 | 18 . . . . . . . Explosive . | . . . . . . . . Electromagnetic 1 | . . . . . . . 1 Robot Hit Streak 13 | 5 12 . 9 . 13 . 12 Robot Miss Streak 5 | 2 3 . 1 . 4 . 5 Penetration Max 1 | . . . . . . . 1 Secondary Targets 3 | . 1 . . . 1 . 1 Max Gunslinging Chain 1 | . 1 . . . 1 . 1 Shots Hit Robots 157 | 22 14 . 16 . 52 . 53 Core Hits 73 | 7 11 . 10 . 29 . 16 Critical Kills 1 | . . . . . 1 . . Critical Parts Destroyed 1 | . . . . . 1 . . Critical Strikes 6 | 2 . . . . 2 . 2 Burn 2 | 2 . . . . . . . Destroy 2 | . . . . . 2 . . Sever 2 | . . . . . . . 2 Melee Attacks 18 | . . . . . . . 18 Impact . | . . . . . . . . Slashing 18 | . . . . . . . 18 Piercing . | . . . . . . . . Sneak Attacks . | . . . . . . . . Combat Hostiles . | . . . . . . . . Follow-up Attacks 2 | . . . . . . . 2 Damage Inflicted 3048 | 291 264 . 229 . 913 . 1351 Guns 2568 | 291 264 . 229 . 913 . 871 Cannons . | . . . . . . . . Explosions 21 | . . . . . . . 21 Melee 459 | . . . . . . . 459 Ramming . | . . . . . . . . Kinetic 2404 | 127 264 . 229 . 913 . 871 Thermal 164 | 164 . . . . . . . Explosive . | . . . . . . . . Electromagnetic 21 | . . . . . . . 21 Impact . | . . . . . . . . Slashing 459 | . . . . . . . 459 Piercing . | . . . . . . . . Highest Corruption 1 | . . . . . 1 . . Average Corruption 1 | . . . . . 1 . . Corruption Purged . | . . . . . . . . Corruption Blocked . | . . . . . . . . Overload Shots . | . . . . . . . . Overflow Damage . | . . . . . . . . Projectiles . | . . . . . . . . Explosions . | . . . . . . . . Melee . | . . . . . . . . Knockbacks . | . . . . . . . . Impact . | . . . . . . . . Kinetic . | . . . . . . . . Secondary . | . . . . . . . . Self-Inflicted Damage . | . . . . . . . . Shots . | . . . . . . . . Rammed . | . . . . . . . . Targets Rammed . | . . . . . . . . Kicked . | . . . . . . . . Crushed . | . . . . . . . . Highest Temperature 72 | 36 12 . 18 . 72 . 9 Average Temperature 16 | 13 6 . 8 . 23 . 4 Received Heat Transfer 999 | . 75 9 6 27 495 . 387 Siege Activations . | . . . . . . . . Martial Activations . | . . . . . . . . Shielding Activations . | . . . . . . . . Robots Disrupted . | . . . . . . . . Combat Hostiles . | . . . . . . . . Robots Corrupted . | . . . . . . . . Combat Hostiles . | . . . . . . . . Parts Fried . | . . . . . . . . Impact Corruptions . | . . . . . . . . Robots Melted . | . . . . . . . . Combat Hostiles . | . . . . . . . . Parts Melted 1 | 1 . . . . . . . Heat Transferred 629 | 629 . . . . . . . Parts Sabotaged . | . . . . . . . . Parts Stolen . | . . . . . . . . Parts Stripped . | . . . . . . . . Power Chain Reactions . | . . . . . . . . Alert | -11 -10 -9 -9 -8 -8 -7 -7 ------- Run | Yrd Mat Mat Min Mat Sto Fac Low Maximum Alert Level . | . . . . . . . . Low Security (%) 100 | 100 100 100 100 100 100 100 . Level 1 . | . . . . . . . . Level 2 . | . . . . . . . . Level 3 . | . . . . . . . . Level 4 . | . . . . . . . . Level 5 . | . . . . . . . . High Security . | . . . . . . . . Max Security . | . . . . . . . . Peak Influence 90 | 10 90 33 66 17 52 22 . Initial 33 | . . 33 11 17 . 11 . Average 14 | 2 28 13 41 9 20 2 . Influence Increases 746 | 30 125 30 65 5 273 23 195 Destroy 0b10 Robot/C 440 | . 80 . 40 . 200 . 120 Destroy 0b10 Robot/NC 55 | 30 . . 15 . 10 . . Destroy Leader 132 | . 30 . 10 . 62 . 30 Successful Hack 28 | . . . . 5 . 23 . Destroy Structure 1 | . . . . . 1 . . Partial Spotted 15 | . 15 . . . . . . Lose Combat Pursuer 75 | . . 30 . . . . 45 Influence Decreases 724 | 30 45 80 49 49 248 48 175 Entered New Map 115 | . . 47 19 29 2 16 2 Time Decay 524 | 30 45 33 30 20 196 32 138 Lost Part 85 | . . . . . 50 . 35 Squads Dispatched 2 | . 1 . . . 1 . . Investigation . | . . . . . . . . Extermination . | . . . . . . . . Reinforcement 2 | . 1 . . . 1 . . Assault . | . . . . . . . . Garrison . | . . . . . . . . Intercept . | . . . . . . . . Searches Triggered . | . . . . . . . . Construction Impeded . | . . . . . . . . Haulers Reinforced . | . . . . . . . . Active Scanning Responses . | . . . . . . . . Cargo Convoy Interrupts . | . . . . . . . . Stealth | -11 -10 -9 -9 -8 -8 -7 -7 --------- Run | Yrd Mat Mat Min Mat Sto Fac Low Distress Signals 3 | . 1 . . . 2 . . Communications Jammed . | . . . . . . . . Distress Signals . | . . . . . . . . Times Spotted 47 | . 6 6 2 3 14 . 16 Peak Tracking Total 5 | . 3 4 2 3 5 . 5 Tactical Retreats 4 | . . 1 . . . . 3 Traps | -11 -10 -9 -9 -8 -8 -7 -7 ------- Run | Yrd Mat Mat Min Mat Sto Fac Low Traps Triggered 2 | . . 1 . . 1 . . Indirectly . | . . . . . . . . Trap Hack Attempts . | . . . . . . . . Triggered . | . . . . . . . . Disarmed . | . . . . . . . . Reprogrammed . | . . . . . . . . Reused . | . . . . . . . . Traps Extracted . | . . . . . . . . Installed . | . . . . . . . . Triggered . | . . . . . . . . Machines | -11 -10 -9 -9 -8 -8 -7 -7 ---------- Run | Yrd Mat Mat Min Mat Sto Fac Low Machines Disabled . | . . . . . . . . Max in Single Turn . | . . . . . . . . Machines Repaired . | . . . . . . . . Machines Dismantled . | . . . . . . . . Machines Sabotaged . | . . . . . . . . Overloaded Fab Kills . | . . . . . . . . Hacking | -11 -10 -9 -9 -8 -8 -7 -7 --------- Run | Yrd Mat Mat Min Mat Sto Fac Low Machines Accessed 8 | . . 1 . 1 2 3 1 Terminals 7 | . . 1 . 1 2 3 . Fabricators . | . . . . . . . . Repair Stations . | . . . . . . . . Recycling Units . | . . . . . . . . Scanalyzers . | . . . . . . . . Garrison Access . | . . . . . . . . Total Hacks 17 | . . 4 . 2 4 6 1 Successful 9 | . . 3 . 1 1 3 1 Failed 8 | . . 1 . 1 3 3 . Catastrophic 2 | . . 1 . 1 . . . Database Lockouts . | . . . . . . . . Manual 12 | . . 2 . 2 2 6 . Terminals 16 | . . 4 . 2 4 6 . Fabricators . | . . . . . . . . Repair Stations . | . . . . . . . . Recycling Units . | . . . . . . . . Scanalyzers . | . . . . . . . . Garrison Access . | . . . . . . . . Terminal Hacks 5 | . . 2 . . 1 1 1 Record 2 | . . 2 . . . . . Open Door 2 | . . . . . 1 . 1 Zone Layout 1 | . . . . . . 1 . Fabricator Hacks . | . . . . . . . . Repair Station Hacks . | . . . . . . . . Recycling Unit Hacks . | . . . . . . . . Scanalyzer . | . . . . . . . . Garrison Access Hacks . | . . . . . . . . Unauthorized Hacks 4 | . . 1 . 1 . 2 . Terminals 4 | . . 1 . 1 . 2 . Botnet 4 | . . 1 . 1 . 2 . Fabricators . | . . . . . . . . Repair Stations . | . . . . . . . . Recycling Units . | . . . . . . . . Scanalyzers . | . . . . . . . . Garrison Access . | . . . . . . . . Data Cores Recovered . | . . . . . . . . Used . | . . . . . . . . Hacking Detections 6 | . . 1 . 1 2 2 . Full Trace Events . | . . . . . . . . Feedback Events . | . . . . . . . . Feedback Blocked . | . . . . . . . . Robot Schematics Acquired . | . . . . . . . . Robots Built . | . . . . . . . . Authchips . | . . . . . . . . Time . | . . . . . . . . Total Robot Build Rating . | . . . . . . . . Part Schematics Acquired . | . . . . . . . . Parts Built . | . . . . . . . . Authchips . | . . . . . . . . Time . | . . . . . . . . Total Part Build Rating . | . . . . . . . . Part Studies Acquired . | . . . . . . . . Parts Repaired . | . . . . . . . . Time . | . . . . . . . . Parts Recycled . | . . . . . . . . Recycled Matter . | . . . . . . . . Retrieved Matter . | . . . . . . . . Retrieved Components . | . . . . . . . . Parts Scanalyzed . | . . . . . . . . Part Schematics Acquired . | . . . . . . . . Parts Damaged . | . . . . . . . . Bothacking | -11 -10 -9 -9 -8 -8 -7 -7 ------------ Run | Yrd Mat Mat Min Mat Sto Fac Low Used RIF Installer . | . . . . . . . . Robots Hacked . | . . . . . . . . Non-combat . | . . . . . . . . Combat . | . . . . . . . . Robot Hacks Applied . | . . . . . . . . Relay Couplers Released . | . . . . . . . . Fabnet Peak Effective % . | . . . . . . . . Robots Rewired . | . . . . . . . . Allies Hacked . | . . . . . . . . Hacks Repelled . | . . . . . . . . Allies | -11 -10 -9 -9 -8 -8 -7 -7 -------- Run | Yrd Mat Mat Min Mat Sto Fac Low Total Allies . | . . . . . . . . Largest Group . | . . . . . . . . Highest-Rated Group . | . . . . . . . . Highest-Rated Ally . | . . . . . . . . Total Orders . | . . . . . . . . Ally Attacks . | . . . . . . . . Total Damage . | . . . . . . . . Kills . | . . . . . . . . Allies Corrupted . | . . . . . . . . Allies Melted . | . . . . . . . . Intel | -11 -10 -9 -9 -8 -8 -7 -7 ------- Run | Yrd Mat Mat Min Mat Sto Fac Low Active Infowar (turns) 2328 | . . . 7 53 482 321 1465 Optics 1732 | . . . . . . 267 1465 Terrain 371 | . . . 7 53 311 . . Traps 2184 | . . . . . 468 321 1395 Seismic 1530 | . . . . . . 321 1209 Robot Analysis Total . | . . . . . . . . Derelict Logs Recovered 1 | . . . . . . . 1 Drone Launches . | . . . . . . . . Drone Recoveries . | . . . . . . . . Exploration | -11 -10 -9 -9 -8 -8 -7 -7 ------------- Run | Yrd Mat Mat Min Mat Sto Fac Low Turns Passed 2769 | 142 135 105 66 53 482 321 1465 Spaces Moved 2064 | 100 117 188 39 53 308 247 1012 Core 97 | 24 24 . . . . . 49 Treads . | . . . . . . . . Legs 1324 | . . . . . 114 247 963 Wheels 227 | 76 27 . 19 53 52 . . Hover 416 | . 66 188 20 . 142 . . Flight . | . . . . . . . . Fastest Speed 48 | 50 50 52 56 80 48 120 50 Average Speed 106 | 74 61 53 78 80 106 120 123 Slowest Speed 300 | 100 100 56 116 80 250 120 300 Overloaded Moves . | . . . . . . . . Propulsion Burnouts . | . . . . . . . . Robots Hopped . | . . . . . . . . Potential Cave-ins . | . . . . . . . . Cave-ins Triggered . | . . . . . . . . Exploration Rate (%) 26 | 4 28 18 10 7 45 9 89 Regions Visited 7 Branch Regions 3 Pre-discovered Areas . | . . . . . . . . Known Exits Taken . | . . . . . . . . Unknown Exits Taken 7 | 1 1 1 1 1 1 1 . Scrap Searched 3 | . . . . . . . 3 Spaces Dug . | . . . . . . . . Terrain Destroyed 2 | . . . . . 1 . 1 Melee . | . . . . . . . . Projectile 2 | . . . . . 1 . 1 AOE . | . . . . . . . . Terrain Rammed . | . . . . . . . . Walls Destroyed . | . . . . . . . . Machines Disabled . | . . . . . . . . Actions | -11 -10 -9 -9 -8 -8 -7 -7 --------- Run | Yrd Mat Mat Min Mat Sto Fac Low Total 2424 | 130 161 191 60 64 392 272 1154 Wait 155 | . 25 . 9 5 25 15 76 Move 2057 | 99 116 187 38 52 307 246 1012 Hop . | . . . . . . . . Pick Up 22 | 8 1 1 1 4 . 3 4 Fast Attach 26 | . 3 1 2 . 11 1 8 Attach 15 | 5 1 1 1 1 2 3 1 Detach 2 | . 2 . . . . . . Swap 10 | . 1 . 1 . 5 1 2 Drop 20 | . 3 1 2 2 5 3 4 Fire 101 | 18 9 . 6 . 37 . 31 Melee 16 | . . . . . . . 16 Ram . | . . . . . . . . Kick . | . . . . . . . . Crush . | . . . . . . . . Escape Stasis . | . . . . . . . . Rewire . | . . . . . . . . Trap . | . . . . . . . . Miscellaneous . | . . . . . . . . Route ------- -11/Scrapyard -10/Materials -9/Materials -9/Mines -8/Materials -8/Storage -7/Factory -7/Lower Caves (discovered 1 exit: [*Low]) History --------- Turn | Location | Event 2 | -11/Scrapyard | Met Revision 17 10 | -11/Scrapyard | Discovered new exit (range 14) 143 | -11/Scrapyard | Entered Materials 276 | -10/Materials | Discovered new exit (range 4) 278 | -10/Materials | Entered another Materials area 278 | -9/Materials | Evolved 2 slots: Propulsion x1, Weapon x1 304 | -9/Materials | Build established: Mutant 370 | -9/Materials | Discovered new exit (range 15) 383 | -9/Materials | Entered Mines 435 | -9/Mines | Discovered new exit (range 7) 449 | -9/Mines | Entered Materials 449 | -8/Materials | Evolved 2 slots: Propulsion x1, Utility x1 476 | -8/Materials | Discovered new exit (range 8) 502 | -8/Materials | Entered Storage 813 | -8/Storage | Lost 3 parts (2n1w) 966 | -8/Storage | Discovered new exit (range 16) 984 | -8/Storage | Entered Factory 984 | -7/Factory | Evolved 2 slots: Utility x2 1298 | -7/Factory | Discovered new exit (range 7) 1305 | -7/Factory | Entered Lower Caves 1308 | -7/Lower Caves | Build established: Scavenger-Gunner 2049 | -7/Lower Caves | Spotted B-75 Beast 2554 | -7/Lower Caves | Lost 8 parts (1p3n1u3w) 2690 | -7/Lower Caves | Core integrity fell below 50% 2728 | -7/Lower Caves | Core integrity fell below 20% 2728 | -7/Lower Caves | Destroyed B-75 Beast 2758 | -7/Lower Caves | Lost 7 parts (3n2u2w) 2762 | -7/Lower Caves | Discovered new exit (range 19) 2770 | -7/Lower Caves | Destroyed by H-55 Commando with Gauss Rifle Last Messages --------------- 02678_ Knocked back. 02694_ Mak. Light Armor Plating blasted off. 02700_ Trap Scanner destroyed. 02700_ Knocked back. 02710_ B-75 Beast Lyr. Medium Armor Plating severed. 02710_ Mak. Axe follow-up attack on B-75 Beast. 02711_ Imp. Weapon Shielding destroyed. 02711_ Flak Gun destroyed. 02711_ Critical hit (Blast). 02711_ Knocked back. 02724_ Mak. Axe follow-up attack on B-75 Beast. 02727_ Mak. Axe destroyed. 02728_ B-75 Beast destroyed. 02732_ Acquired Mak. Light Armor Plating. 02746_ L-41 Fighter Carbon-fiber Leg severed. 02756_ Dropped Mak. Axe. 02756_ Dropped Mak. Light Armor Plating. 02762_ EXIT=FOUND 02770_ Penetrated by Slug. Map ----- +----------------------------------------------------+ | ?????????????????????????????????? ### ###???????# | | ???????????????????????????? ????? #???????# | | ??????????????????????????? ????? ????#### | | ???????????????????????????? ##??# ???## # | | ????????????????????????????? ### #???# | | ?????????????????????????????? #??## | | ???????????????????????????????# #??# | | ????????????????????????????????# #???# | | ????????????????????????????????# #???# | | ????????????????????????????????# ##??## % | | ????????????????????????????????# ###"# | | ?????????????????????????????????# ##"# | | ??????????????????????????????????# % | | ?????????????????????????????????## ! % | | ?????????????????????????????????# %! %= " | | ???????????????????????????####??# % %# # | | ???????????????????????????# ### ## # | | ???????????????#????????????# ## "# | | ??????????????## ???????????# ######### | | ??????????????# ??????????## ##??????##/! | | ??????????????# ??????????# ##????#### | | ??????????###### ?????????# ####### | | ??????????#h ######### | | ??????????#p | | ??????????#h | | ??????????????## < @###### ## | | ???????????????## ##????# #### | | ????????????????## ### #??????## ##??# | | ?????????????????#??? g????????#####???# | | ????????????????????# ????????????????? | | ????????????????????# ????????????????? | | ????????????????????#????????????????? ### | | ?????????????????????????????????????? #??## | | ?????????????????????????????????????###### ???? | | ??????????????????????????????????????????# #??? | | ??????????????????????????????????????????## ##??? | | ???????????????????????????????????????????###???? | | ?????????????????????????????????????????????????? | | ?????????????????????????????????????????????????? | | ?????????????????????????????????????????????????? | | ?????????????????????????????????????????????????? | | ?????????????????????????????????????????????????? | | ?????????????????????????????????????????????????? | | ?????????????????????????????????????????????????? | | ?????????????????????????????????????????????????? | | ?????????????????????????????????????????????????? | | ?????????????????????????????????????????????????? | | ?????????????????????????????????????????????????? | | ?????????????????????????????????????????????????? | | ?????????????????????????????????????????????????? | +----------------------------------------------------+ Best States ------------- Heat Dissipation 34 Energy Generation 15 Energy Capacity 265 Matter Stores 300 Matter Capacity 300 Sight Range 20 Terrain Scan Range 16 Terrain Scan Density 110 Armor Coverage 100 Weapon Shielding 66 Evasion (%) 55 Targeting Accuracy 8 Item Schematics ----------------- None Robot Schematics ------------------ None Fabricated ------------ Nothing Repaired ---------- Nothing Studied --------- None Alien Tech Used ----------------- None Achievements -------------- None Challenges ------------ None Game ------ Seed ContainmentRemoteExtractor Manual? 0 Play Time 00:29:52 Cumulative 36.1 hours Start 2026.07.23 @ 21:33:38 End 2026.07.23 @ 22:03:43 Sessions 1 Manual Loads 0 Difficulty Rogue Special Mode None Game No. 61 Rogue 61 Adventurer 0 Explorer 0 Win Type - Total 0 Types 0/0/0/0/0/0/0/0/0/0 Lore% 24 Gallery% 29 Achievement% 23 Wizard Run 0 Options --------- Layout 1 ASCII 0 Keyboard 0 Movement Mouse Keybinds 0 Fullscreen 1 Font 24/Smallcaps Map View 50x35 Zoom Use 0% Tactical HUD 1 Map Filters NONE Filters NONE Steam 1 RUN: cacc187e-41b5-4ac2-b90f-c50c4a68ee6b